Cogmind - Beta 13 @@@ ROGUE MODE // 2024.06.03 @ 17:46:12 Player: Sunvar Result: Destroyed by 8R-AWN with 8R-AWN's Boregun Performance ------------- Evolutions (1) 500 Regions Visited (5) 1000 Robots Destroyed (80) 400 Value Destroyed (1862) 1862 Prototype IDs (2) 40 Alien Tech Used (0) 0 Bonus (0) 0 TOTAL SCORE: 3802 Bonus ------- None Cogmind --------- Core Integrity 0/400 Matter 299/300 Energy 100/100 System Corruption 4% Temperature Cool (0) Movement Core (100) Ox1 Location -9/Exiles Parts ------- > --- POWER (1) -------- (None) > --- PROPULSION (3) --- (None) > --- UTILITY (2) ------ (None) > --- WEAPON (3) ------- Great Maul > --- INVENTORY (5) ---- Improved Ion Engine Advanced Treads Peak State ------------ > --- POWER ------------ Improved Ion Engine > --- PROPULSION ------- Armored Treads Advanced Treads Advanced Treads > --- UTILITY ---------- High-capacity Storage Unit Improved Trap Extractor > --- WEAPON ----------- Heavy Assault Rifle Heavy Assault Rifle Autogun > --- INVENTORY -------- Improved Ion Engine Improved Treads Armored Treads Armored Treads Armored Treads Advanced Treads Advanced Treads Hardened Light Armor Plating Hardened Light Armor Plating Hardened Light Armor Plating Hardened Light Armor Plating Hardened Light Armor Plating Improved Medium Armor Plating Improved Medium Armor Plating Autogun Autogun Autogun Gauss Rifle Gauss Rifle Great Maul [Rating: 27] Favorites ----------- Power Ion Engine Engine Ion Engine Propulsion Advanced Treads Treads Advanced Treads Leg Aluminum Leg Utility High-capacity Storage Unit Device Improved Trap Extractor Storage High-capacity Storage Unit Protection Hardened Light Armor Plating Weapon Heavy Assault Rifle Energy Gun Medium Laser Ballistic Gun Heavy Assault Rifle Launcher Rocket Launcher Impact Weapon Great Maul Special Melee Weapon Datajack Build | -11 -10 -10 -9 -9 -9 ------- Run | Yrd Mat Min Mat Min Exi Slots Evolved 2 | . . . 2 . . Power . | . . . . . . Propulsion 1 | . . . 1 . . Utility . | . . . . . . Weapon 1 | . . . 1 . . Parts Attached 61 | . 14 2 25 10 10 Power 3 | . 1 . 2 . . Engine 3 | . 1 . 2 . . Core . | . . . . . . Reactor . | . . . . . . Propulsion 17 | . 3 . 11 1 2 Treads 16 | . 2 . 11 1 2 Leg 1 | . 1 . . . . Wheel . | . . . . . . Hover . | . . . . . . Flight . | . . . . . . Utility 18 | . 7 . 2 4 5 Device 4 | . 1 . . 2 1 Storage 5 | . 4 . . . 1 Processor . | . . . . . . Hackware . | . . . . . . Protection 9 | . 2 . 2 2 3 Artifact . | . . . . . . Weapon 23 | . 3 2 10 5 3 Energy Gun . | . . . . . . Energy Cannon . | . . . . . . Ballistic Gun 17 | . 3 1 9 2 2 Ballistic Cannon . | . . . . . . Launcher 2 | . . 1 1 . . Special Weapon . | . . . . . . Impact Weapon 3 | . . . . 2 1 Slashing Weapon . | . . . . . . Piercing Weapon . | . . . . . . Special Melee Weapon 1 | . . . . 1 . Unidentified Prototypes . | . . . . . . Parts Lost 13 | . . . 1 . 12 Power 2 | . . . 1 . 1 Propulsion 3 | . . . . . 3 Utility 3 | . . . . . 3 Weapon 5 | . . . . . 5 Highest Loss Streak 6 | . . . 1 . 6 To Critical Strikes 6 | . . . . . 6 Average Slot Usage (%) 98 | . 98 100 99 99 89 Engine 11 | . 14 14 11 11 8 Treads 29 | . 22 28 33 32 31 Leg 1 | . 5 . . . . Storage 11 | . 14 14 11 11 3 Protection 12 | . 12 14 11 10 13 Ballistic Gun 28 | . 24 27 32 25 28 Impact Weapon 1 | . . . . 6 . Naked Turns . | . . . . . . Heaviest Build 62 | 13 52 52 61 62 61 Greatest Support 69 | 20 40 40 69 64 64 Greatest Overweight (x) 1 | . 1 1 . 1 . Average Overweight (x) . | . . 1 . . . Largest Inventory Capacity 25 | . 25 20 20 20 20 Average Capacity 17 | . 13 20 20 20 9 Most Carried 20 | . 20 20 20 20 20 Average Carried 16 | . 12 20 19 19 7 Final Capacity 20 | 8 20 20 20 20 5 Final Carried 20 | 6 20 20 20 20 2 Class Distribution -------------------- 55% | Mutant 40% | Tank 3% | Gunner Dominant Class ---------------- Mutant | -10/Materials Mutant | -10/Mines Tank | -9/Materials Mutant | -9/Mines Tank | -9/Exiles Resources | -11 -10 -10 -9 -9 -9 ----------- Run | Yrd Mat Min Mat Min Exi Matter Collected 2271 | 200 270 99 867 507 328 Remotely . | . . . . . . Salvage Created 2601 | . 486 94 1166 826 29 Parts 173 | . 34 15 87 37 . Haulers Intercepted 6 | . 2 . 4 . . Recyclers Shooed 1 | . 1 . . . . Parts Field Recycled . | . . . . . . Retrieved Matter . | . . . . . . Parts Self-Destructed . | . . . . . . Prevented . | . . . . . . Kills | -11 -10 -10 -9 -9 -9 ------- Run | Yrd Mat Min Mat Min Exi Combat Hostiles Destroyed 63 | . 10 8 23 20 2 Guns 60 | . 10 5 23 20 2 AOE 3 | . . 3 . . . Classes Destroyed 11 | . 4 1 4 1 1 Worker 3 | . . . 2 1 . Builder 1 | . . . 1 . . Tunneler 1 | . . 1 . . . Hauler 6 | . 2 . 4 . . Recycler 1 | . . . 1 . . Watcher 7 | . 2 . 5 . . Swarmer 22 | . 3 8 11 . . Grunt 32 | . 7 . 6 19 . Duelist 1 | . . . . 1 . Sentry 6 | . . . 6 . . Assembled 2 | . . . . . 2 Best Kill Streak 9 | . 4 3 6 9 2 Combat Bots Only 9 | . 3 3 4 9 2 Max Kills in Single Turn 2 | . 1 2 2 1 1 Gunslinging 1 | . . . 1 . . Exploded 2 | . . 2 . . . Melee . | . . . . . . Uniques/NPCs Destroyed . | . . . . . . Combat | -11 -10 -10 -9 -9 -9 -------- Run | Yrd Mat Min Mat Min Exi Hostile Shots Fired 304 | . 59 33 64 45 103 Missed 63 | . 12 11 14 7 19 Damage Taken 3755 | . 523 248 622 502 1860 Core 589 | . 153 24 49 67 296 Absorbed by Shields . | . . . . . . Core Remaining (%) 64 | 100 . 29 . . . Volleys Fired 191 | . 55 15 61 35 25 Largest 3 | . 2 2 3 3 3 Hottest 90 | . 90 53 69 69 69 Shots Fired 501 | . 110 30 182 105 74 Gun 498 | . 110 28 181 105 74 Cannon . | . . . . . . Launcher 3 | . . 2 1 . . Special . | . . . . . . Kinetic 461 | . 73 28 181 105 74 Thermal 37 | . 37 . . . . Explosive 3 | . . 2 1 . . Electromagnetic . | . . . . . . Robot Hit Streak 23 | . 14 4 23 6 19 Robot Miss Streak 4 | . 4 2 3 3 3 Penetration Max . | . . . . . . Secondary Targets 5 | . . . 3 2 . Max Gunslinging Chain 1 | . . . 1 1 . Shots Hit Robots 332 | . 77 16 109 61 69 Core Hits 135 | . 31 9 49 30 16 Critical Kills 1 | . . . 1 . . Critical Parts Destroyed 2 | . . . . . 2 Critical Strikes 4 | . 1 . 1 . 2 Burn 1 | . 1 . . . . Destroy 2 | . . . 1 . 1 Smash 1 | . . . . . 1 Melee Attacks 29 | . . . . 15 14 Impact 29 | . . . . 15 14 Slashing . | . . . . . . Piercing . | . . . . . . Sneak Attacks . | . . . . . . Combat Hostiles . | . . . . . . Follow-up Attacks . | . . . . . . Damage Inflicted 5341 | . 889 430 1662 970 1390 Guns 4600 | . 882 199 1662 964 893 Cannons . | . . . . . . Explosions 199 | . . 199 . . . Melee 497 | . . . . . 497 Ramming 45 | . 7 32 . 6 . Kinetic 4253 | . 535 199 1662 964 893 Thermal 347 | . 347 . . . . Explosive 199 | . . 199 . . . Electromagnetic . | . . . . . . Impact 497 | . . . . . 497 Slashing . | . . . . . . Piercing . | . . . . . . Highest Corruption 4 | . . . 4 4 4 Average Corruption 3 | . . . 2 4 4 Corruption Purged . | . . . . . . Corruption Blocked . | . . . . . . Effects 64 | . . . 14 27 23 Message Errors 17 | . . . 2 6 9 Matter Fused 12 | . . . 5 5 2 Heat Flow Errors 6 | . . . 2 3 1 Energy Discharges 11 | . . . 1 6 4 Parts Rejected 1 | . . . . . 1 Parts Fused 1 | . . . 1 . . Data Loss (minor) 8 | . . . 2 3 3 Data Loss (major) 3 | . . . . 2 1 Misfires 3 | . . . 1 1 1 Weapon Failures 2 | . . . . 1 1 Overload Shots . | . . . . . . Overflow Damage 136 | . . 10 . . 126 Projectiles . | . . . . . . Explosions 10 | . . 10 . . . Melee 126 | . . . . . 126 Knockbacks 1 | . . 1 . . . Impact 1 | . . 1 . . . Kinetic . | . . . . . . Secondary . | . . . . . . Self-Inflicted Damage 76 | . . 76 . . . Shots 2 | . . 2 . . . Rammed 11 | . 1 6 1 3 . Targets Rammed 14 | . 3 7 1 3 . Kicked 2 | . 2 . . . . Crushed 1 | . . 1 . . . Highest Temperature 282 | . 282 . 246 215 269 Average Temperature 63 | . 78 . 39 87 54 Received Heat Transfer 606 | . 231 . 147 228 . Siege Activations . | . . . . . . Robots Corrupted . | . . . . . . Combat Hostiles . | . . . . . . Parts Fried . | . . . . . . Impact Corruptions 3 | . . . . . 3 Robots Melted . | . . . . . . Combat Hostiles . | . . . . . . Parts Melted 2 | . 2 . . . . Heat Transferred 1027 | . 1027 . . . . Parts Sabotaged . | . . . . . . Parts Stolen . | . . . . . . Parts Stripped . | . . . . . . Power Chain Reactions . | . . . . . . Alert | -11 -10 -10 -9 -9 -9 ------- Run | Yrd Mat Min Mat Min Exi Peak Influence 320 | . 309 187 320 265 . Initial 100 | . . 23 29 100 . Average 110 | . 77 61 185 99 . Maximum Alert Level 1 | . 1 . 1 1 . Low Security (%) 79 | . 89 100 51 84 . Level 1 20 | . 10 . 48 15 . Level 2 . | . . . . . . Level 3 . | . . . . . . Level 4 . | . . . . . . Level 5 . | . . . . . . High Security . | . . . . . . Max Security . | . . . . . . Squads Dispatched 3 | . 3 . . . . Investigation 1 | . 1 . . . . Extermination . | . . . . . . Reinforcement 2 | . 2 . . . . Assault . | . . . . . . Garrison . | . . . . . . Intercept . | . . . . . . Searches Triggered . | . . . . . . Construction Impeded . | . . . . . . Haulers Reinforced . | . . . . . . Active Scanning Responses . | . . . . . . Cargo Convoy Interrupts . | . . . . . . Stealth | -11 -10 -10 -9 -9 -9 --------- Run | Yrd Mat Min Mat Min Exi Distress Signals 6 | . 2 . 3 1 . Communications Jammed . | . . . . . . Distress Signals . | . . . . . . Times Spotted 99 | . 18 9 34 19 19 Peak Tracking Total 12 | . 4 3 4 5 12 Tactical Retreats 11 | . 2 2 2 . 5 Traps | -11 -10 -10 -9 -9 -9 ------- Run | Yrd Mat Min Mat Min Exi Traps Triggered 5 | . 1 . 3 1 . Indirectly . | . . . . . . Trap Hack Attempts 20 | . . . . 20 . Triggered 1 | . . . . 1 . Disarmed 1 | . . . . 1 . Reprogrammed 1 | . . . . 1 . Reused 1 | . . . . . 1 Traps Extracted 1 | . . . . 1 . Installed 1 | . . . . . 1 Triggered . | . . . . . . Most Traps Carried 3 | . . . . 3 3 Machines | -11 -10 -10 -9 -9 -9 ---------- Run | Yrd Mat Min Mat Min Exi Machines Disabled 6 | . . . 1 3 2 Max in Single Turn 1 | . . . 1 1 1 Machines Repaired . | . . . . . . Machines Dismantled . | . . . . . . Machines Sabotaged . | . . . . . . Overloaded Fab Kills . | . . . . . . Hacking | -11 -10 -10 -9 -9 -9 --------- Run | Yrd Mat Min Mat Min Exi Machines Accessed 15 | . 6 1 7 . 1 Terminals 12 | . 5 1 6 . . Fabricators . | . . . . . . Repair Stations . | . . . . . . Recycling Units 2 | . 1 . 1 . . Scanalyzers . | . . . . . . Garrison Access . | . . . . . . Total Hacks 31 | . 11 1 18 . 1 Successful 10 | . 5 1 3 . 1 Failed 21 | . 6 . 15 . . Catastrophic 6 | . . . 6 . . Database Lockouts . | . . . . . . Manual 7 | . . . 7 . . Terminals 26 | . 10 1 15 . . Fabricators . | . . . . . . Repair Stations . | . . . . . . Recycling Units 4 | . 1 . 3 . . Scanalyzers . | . . . . . . Garrison Access . | . . . . . . Terminal Hacks 8 | . 4 1 2 . 1 Record 1 | . . . . . 1 Robot Analysis 1 | . 1 . . . . Prototype ID Bank 1 | . . . 1 . . Branch Access Points 1 | . 1 . . . . Locate Traps 1 | . 1 . . . . Dispatch Records 1 | . . 1 . . . Hauler Manifests 2 | . 1 . 1 . . Fabricator Hacks . | . . . . . . Repair Station Hacks . | . . . . . . Recycling Unit Hacks 2 | . 1 . 1 . . Retrieve Components 2 | . 1 . 1 . . Scanalyzer . | . . . . . . Garrison Access Hacks . | . . . . . . Unauthorized Hacks . | . . . . . . Terminals . | . . . . . . Fabricators . | . . . . . . Repair Stations . | . . . . . . Recycling Units . | . . . . . . Scanalyzers . | . . . . . . Garrison Access . | . . . . . . Data Cores Recovered . | . . . . . . Used . | . . . . . . Hacking Detections 12 | . 4 1 7 . . Full Trace Events . | . . . . . . Feedback Events . | . . . . . . Feedback Blocked . | . . . . . . Robot Schematics Acquired . | . . . . . . Robots Built . | . . . . . . Authchips . | . . . . . . Time . | . . . . . . Total Robot Build Rating . | . . . . . . Part Schematics Acquired . | . . . . . . Parts Built . | . . . . . . Authchips . | . . . . . . Time . | . . . . . . Total Part Build Rating . | . . . . . . Parts Repaired . | . . . . . . Time . | . . . . . . Parts Recycled . | . . . . . . Recycled Matter . | . . . . . . Retrieved Matter . | . . . . . . Retrieved Components 19 | . 9 . 10 . . Parts Scanalyzed . | . . . . . . Part Schematics Acquired . | . . . . . . Parts Damaged . | . . . . . . Bothacking | -11 -10 -10 -9 -9 -9 ------------ Run | Yrd Mat Min Mat Min Exi Used RIF Installer . | . . . . . . Robots Hacked . | . . . . . . Non-combat . | . . . . . . Combat . | . . . . . . Robot Hacks Applied . | . . . . . . Relay Couplers Released . | . . . . . . Fabnet Peak Effective % . | . . . . . . Robots Rewired . | . . . . . . Allies Hacked . | . . . . . . Hacks Repelled . | . . . . . . Allies | -11 -10 -10 -9 -9 -9 -------- Run | Yrd Mat Min Mat Min Exi Total Allies . | . . . . . . Largest Group . | . . . . . . Highest-Rated Group . | . . . . . . Highest-Rated Ally . | . . . . . . Total Orders . | . . . . . . Ally Attacks . | . . . . . . Total Damage . | . . . . . . Kills . | . . . . . . Allies Corrupted . | . . . . . . Allies Melted . | . . . . . . Intel | -11 -10 -10 -9 -9 -9 ------- Run | Yrd Mat Min Mat Min Exi Robot Analysis Total 1 | . 1 . . . . Derelict Logs Recovered 2 | . . 1 . 1 . Drone Launches . | . . . . . . Drone Recoveries . | . . . . . . Exploration | -11 -10 -10 -9 -9 -9 ------------- Run | Yrd Mat Min Mat Min Exi Turns Passed 6817 | . 1557 1242 1681 1416 921 Spaces Moved 3212 | 1 764 488 862 622 475 Core . | . . . . . . Treads 3083 | . 636 488 862 622 475 Legs 129 | 1 128 . . . . Wheels . | . . . . . . Hover . | . . . . . . Flight . | . . . . . . Fastest Speed 120 | 120 120 240 150 153 153 Average Speed 171 | 120 169 240 156 153 155 Slowest Speed 240 | 120 240 240 160 237 170 Overloaded Moves . | . . . . . . Propulsion Burnouts . | . . . . . . Robots Hopped . | . . . . . . Cave-ins Triggered . | . . . . . . Exploration Rate (%) 65 | 2 96 97 74 71 53 Regions Visited 5 Branch Regions 3 Pre-discovered Areas 3 | . . 1 . 1 1 Known Exits Taken 1 | . 1 . . . . Unknown Exits Taken 4 | 1 . 1 1 1 . Scrap Searched 3 | . . 2 . 1 . Spaces Dug 15 | . . . 10 5 . Terrain Destroyed 41 | . . 26 10 5 . Melee 5 | . . . . 5 . Projectile . | . . . . . . AOE 36 | . . 26 10 . . Terrain Rammed . | . . . . . . Walls Destroyed . | . . . . . . Machines Disabled . | . . . . . . Actions | -11 -10 -10 -9 -9 -9 --------- Run | Yrd Mat Min Mat Min Exi Total 4121 | . 936 520 1083 985 597 Wait 435 | . 39 7 87 268 34 Move 3207 | . 763 487 861 621 475 Hop . | . . . . . . Pick Up 69 | . 34 1 19 6 9 Fast Attach 15 | . 4 . 4 2 5 Attach 10 | . 2 . 3 1 4 Detach 3 | . 1 . . . 2 Swap 36 | . 8 2 18 7 1 Drop 91 | . 27 1 29 7 27 Fire 191 | . 55 15 61 35 25 Melee 29 | . . . . 15 14 Ram . | . . . . . . Kick 2 | . 2 . . . . Crush 12 | . 1 7 1 3 . Escape Stasis . | . . . . . . Rewire . | . . . . . . Trap 21 | . . . . 20 1 Miscellaneous . | . . . . . . Route ------- -11/Scrapyard -10/Materials (discovered 4 exits: *Mat x3 / *Min) -10/Mines (discovered 2 exits: *Mat x2) -9/Materials (discovered 3 exits: [*Mat x2] / [*Min]) -9/Mines -9/Exiles History --------- Turn | Location | Event 1 | -11/Scrapyard | Discovered new exit (range 0) 1 | -11/Scrapyard | Entered Materials 300 | -10/Materials | Core integrity fell below 50% 334 | -10/Materials | Build established: Mutant 341 | -10/Materials | Discovered new exit (range 14) 494 | -10/Materials | Discovered new exit (range 15) 1065 | -10/Materials | Discovered new exit (range 5) 1360 | -10/Materials | Identified exit to Mines 1558 | -10/Materials | Entered Mines 1563 | -10/Mines | Met a Derelict bent on vengeance 1800 | -10/Mines | Discovered new exit (range 7) 2078 | -10/Mines | Discovered new exit (range 4) 2121 | -10/Mines | Learned location of Zion (-6) 2552 | -10/Mines | Received a Rocket Launcher from a helpful Derelict 2800 | -10/Mines | Entered Materials 2800 | -9/Materials | Evolved 2 slots: Propulsion x1, Weapon x1 3090 | -9/Materials | Build established: Tank 3398 | -9/Materials | Discovered new exit (range 16) 3749 | -9/Materials | Discovered new exit (range 5) 3965 | -9/Materials | Discovered new exit (range 15) 4481 | -9/Materials | Entered Mines 4556 | -9/Mines | Learned Materials stockpile data 4563 | -9/Mines | Excavation squad dispatched 4563 | -9/Mines | A large section of the Mines collapsed 4675 | -9/Mines | Met a Derelict who couldn't figure out how to use a Trap Extractor 4813 | -9/Mines | Excavation squad dispatched 4883 | -9/Mines | Build established: Mutant 5063 | -9/Mines | Excavation squad dispatched 5082 | -9/Mines | Found a damaged Exp. Sensor Array with a note attached 5313 | -9/Mines | Excavation squad dispatched 5367 | -9/Mines | Learned location of Storage (-7) 5563 | -9/Mines | Excavation squad dispatched 5744 | -9/Mines | Found a hidden stash of uninstalled traps 5753 | -9/Mines | Destroyed 9 combat bots 5813 | -9/Mines | Excavation squad dispatched 5832 | -9/Mines | Build established: Tank 5891 | -9/Mines | Deemed a non-threat by the Exiles lab entrance 5891 | -9/Mines | Discovered new exit (range 5) 5897 | -9/Mines | Entered Exiles 5936 | -9/Exiles | Met 8R-AWN 5960 | -9/Exiles | Met EX-HEX 5971 | -9/Exiles | Warned about trapping Exiles lab 6039 | -9/Exiles | Met EX-DEC 6483 | -9/Exiles | Attacked by the Exiles 6634 | -9/Exiles | Core integrity fell below 50% 6636 | -9/Exiles | Lost 3 parts (1p2w) 6708 | -9/Exiles | Core integrity fell below 20% 6742 | -9/Exiles | Lost 6 parts (1n2u3w) 6818 | -9/Exiles | Destroyed by 8R-AWN with 8R-AWN's Boregun Last Messages --------------- 06798_ 8R-AWN suffers critical hit (Smash). 06798_ Destroyed Rnf. Fission Core. 06798_ 8R-AWN system corrupted by crushing effect. 06799_ Penetrated by HV Slug. 06799_ HV Slug penetrates Earth. 06802_ HV Slug penetrates Wall. 06806_ Penetrated by HV Slug. 06806_ Critical hit (Destroy). 06806_ Arm. Treads destroyed. 06806_ HV Slug penetrates Earth. 06808_ ACIAT/DQZM:QA6USMQ|:/X6UAMNKYJ|X2AMBZ 06809_ Penetrated by HV Slug. 06809_ Hrd. Light Armor Plating destroyed. 06809_ HV Slug penetrates Earth. 06810_ Destroyed Prototype Device. 06810_ 8R-AWN system corrupted by crushing effect. 06811_ Penetrated by HV Slug. 06811_ HV Slug penetrates Earth. 06814_ HV Slug penetrates Wall. 06818_ Penetrated by HV Slug. Map ----- +----------------------------------------------------+ | #####X# #"###""""""" ##???????????????????? | | """""" " "" ##???###########????? | | % % "%""" " #####"""""""""##???? | | % " """ """"##??? | | "" " #??? | | % " """#??? | | % % " "#??? | | " "##?? | | #" ""### | | #"" """""" """# | | #" ######""" "# | | "" ""##????#####""" # | | "" """##?????????##""" | | "" """##???????????#"""" | | "" ""#???????????##"" | | " ##?####???####"""" | | "" ## a####""" | | " """" | | "" | | ?""" | | ? " | | ?? " "" """ "" | | ????" ""## ##""" " " ""#" "# | | ????? ???????? ""#??# ######""" """##"""""""## | | ???????????????????????#g #????###""""###########? | | ??????????????????????## @####???######??????????? | | ??????????????????????#! "!#???????????????????? | | ??????????????????????#" !#???????????????????? | | ??????????????????????#" #???????????????????? | | ??????????????????????#!!" !";#??????????????????? | | ??????????????????????#####;## #?????????????????? | | ???????????????????????????##?# #????????????????? | | ???????????????????????????????# #???????????????? | | ????????????????????????????????# #??????????????? | | ?????????????????????????????????# ??????????????? | | ??????????????????????????????????? ?????????????? | | ????????????????????????????????????#????????????? | | ?????????????????????????????????????????????????? | | ?????????????????????????????????????????????????? | | ?????????????????????????????????????????????????? | | ?????????????????????????????????????????????????? | | ?????????????????????????????????????????????????? | | ?????????????????????????????????????????????????? | | ?????????????????????????????????????????????????? | | ?????????????????????????????????????????????????? | | ?????????????????????????????????????????????????? | | ?????????????????????????????????????????????????? | | ?????????????????????????????????????????????????? | | ?????????????????????????????????????????????????? | | ?????????????????????????????????????????????????? | +----------------------------------------------------+ Best States ------------- Heat Dissipation 35 Energy Generation 12 Energy Capacity 265 Matter Stores 300 Matter Capacity 300 Sight Range 16 Terrain Scan Density 10 Armor Coverage 375 Evasion (%) 55 Recoil Reduction 3 Trap Extractor Capacity 6 Item Schematics ----------------- None Robot Schematics ------------------ None Fabricated ------------ Nothing Alien Tech Used ----------------- None Achievements -------------- None Challenges ------------ None Game ------ Seed ControlThrusterOptics Manual? 0 Play Time 00:44:23 Cumulative 92.7 hours Start 2024.06.03 @ 16:55:21 End 2024.06.03 @ 17:46:12 Sessions 1 Manual Loads 0 Difficulty Rogue Special Mode None Game No. 65 Rogue 65 Adventurer 0 Explorer 0 Win Type - Total 2 Types 2/0/0/0/0/0/0/0/0 Lore% 47 Gallery% 57 Achievement% 42 Wizard Run 0 Options --------- Layout 0 ASCII 1 Keyboard 1 Movement Numpad Keybinds 0 Fullscreen 1 Font 24/Proggy Map View 76x56 Zoom Use 0% Tactical HUD 1 Map Filters NONE Filters NONE Steam 1 RUN: cbab402d-03fd-4711-ac98-377fce51c680